Cogmind - Beta 13 @@@ ROGUE MODE // 2024.03.20 @ 00:14:12 Player: Desymo99 Result: Smashed by cave-in Performance ------------- Evolutions (1) 500 Regions Visited (2) 400 Robots Destroyed (51) 255 Value Destroyed (1491) 1491 Prototype IDs (2) 40 Alien Tech Used (0) 0 Bonus (201) 201 TOTAL SCORE: 2887 Bonus ------- High Alert Combat Kills 201 Cogmind --------- Core Integrity 0/400 Matter 44/300 Energy 98/100 System Corruption 4% Temperature Cool (0) Movement Core (50) Location -9/Materials Parts ------- > --- POWER (1) -------- (None) > --- PROPULSION (2) --- (None) > --- UTILITY (4) ------ (None) > --- WEAPON (2) ------- (None) > --- INVENTORY (5) ---- Improved Heat Sink Advanced Weight Redist. System Terrain Scan Processor Core Shielding Hacking Suite Peak State ------------ > --- POWER ------------ Light Nuclear Core > --- PROPULSION ------- Improved Treads Improved Treads > --- UTILITY ---------- Improved Heat Sink Small Storage Unit Visual Processing Unit Sensor Array > --- WEAPON ----------- Particle Cannon Mini Grenade Launcher > --- INVENTORY -------- Light Ion Engine Improved Heat Sink Structural Scanner Core Shielding Hacking Suite Particle Cannon [Rating: 19] Favorites ----------- Power Ion Engine Engine Ion Engine Power Core Light Nuclear Core Propulsion Improved Treads Treads Improved Treads Leg Aluminum Leg Utility Small Storage Unit Device Sensor Array Storage Small Storage Unit Processor Visual Processing Unit Weapon Mini Grenade Launcher Energy Cannon Particle Cannon Ballistic Gun Assault Rifle Launcher Mini Grenade Launcher Special Melee Weapon Datajack Build | -11 -10 -9 ------- Run | Yrd Mat Mat Slots Evolved 2 | . . 2 Power . | . . . Propulsion . | . . . Utility 2 | . . 2 Weapon . | . . . Parts Attached 38 | 6 12 20 Power 8 | 1 3 4 Engine 4 | 1 3 . Core 4 | . . 4 Reactor . | . . . Propulsion 10 | 2 3 5 Treads 7 | 2 . 5 Leg 3 | . 3 . Wheel . | . . . Hover . | . . . Flight . | . . . Utility 8 | 1 2 5 Device 6 | . 1 5 Storage 1 | 1 . . Processor 1 | . 1 . Hackware . | . . . Protection . | . . . Artifact . | . . . Weapon 12 | 2 4 6 Energy Gun . | . . . Energy Cannon 3 | . 3 . Ballistic Gun 2 | 2 . . Ballistic Cannon . | . . . Launcher 6 | . . 6 Special Weapon . | . . . Impact Weapon . | . . . Slashing Weapon . | . . . Piercing Weapon . | . . . Special Melee Weapon 1 | . 1 . Unidentified Prototypes . | . . . Parts Lost 14 | . 3 11 Power 1 | . . 1 Propulsion 5 | . 1 4 Utility 5 | . 1 4 Weapon 3 | . 1 2 Highest Loss Streak 4 | . 2 4 To Critical Strikes 1 | . . 1 Average Slot Usage (%) 94 | . 96 91 Engine 7 | . 13 1 Core 3 | . . 7 Treads 14 | . 13 15 Leg 8 | . 13 3 Device 13 | . 5 21 Storage 11 | . 14 10 Processor 9 | . 7 10 Energy Cannon 9 | . 13 5 Ballistic Gun 4 | . 9 . Launcher 7 | . . 15 Special Melee Weapon 1 | . 4 . Naked Turns 8 | . . 8 Heaviest Build 20 | 13 18 20 Greatest Support 46 | 40 40 46 Greatest Overweight (x) 5 | . 1 5 Average Overweight (x) . | . . . Largest Inventory Capacity 8 | 8 8 8 Average Capacity 7 | 7 8 7 Most Carried 8 | 6 8 8 Average Carried 5 | 3 6 5 Final Capacity 8 | 8 8 5 Final Carried 8 | 6 8 5 Class Distribution -------------------- 59% | Mutant 40% | Scavenger-Mutant Dominant Class ---------------- Mutant | -10/Materials Scavenger-Mutant | -9/Materials Resources | -11 -10 -9 ----------- Run | Yrd Mat Mat Matter Collected 1128 | 237 334 557 Remotely . | . . . Salvage Created 1187 | . 409 778 Parts 68 | . 27 41 Haulers Intercepted 1 | . . 1 Recyclers Shooed 6 | . . 6 Parts Field Recycled . | . . . Retrieved Matter . | . . . Parts Self-Destructed . | . . . Prevented . | . . . Kills | -11 -10 -9 ------- Run | Yrd Mat Mat Combat Hostiles Destroyed 37 | . 11 26 Melee 1 | . . 1 Guns 9 | . 9 . Cannons 2 | . 2 . AOE 25 | . . 25 Classes Destroyed 10 | . 6 4 Worker 4 | . 1 3 Builder 1 | . . 1 Hauler 1 | . . 1 Recycler 3 | . 1 2 Operator 1 | . 1 . Watcher 4 | . 1 3 Swarmer 5 | . 5 . Grunt 24 | . 6 18 Brawler 1 | . . 1 Sentry 7 | . . 7 Best Kill Streak 13 | . 4 13 Combat Bots Only 9 | . 3 9 Max Kills in Single Turn 4 | . 1 4 Gunslinging . | . . . Exploded 3 | . . 3 Melee 1 | . . 1 Uniques/NPCs Destroyed . | . . . Combat | -11 -10 -9 -------- Run | Yrd Mat Mat Hostile Shots Fired 183 | . 87 96 Missed 45 | . 17 28 Damage Taken 2209 | . 772 1437 Core 598 | . 197 401 Absorbed by Shields . | . . . Regen/Repaired (Parts) 78 | . . 78 Core Remaining (%) 60 | 100 21 . Volleys Fired 133 | . 77 56 Largest 2 | . 2 2 Hottest 136 | . 136 136 Shots Fired 170 | . 102 68 Gun 70 | . 70 . Cannon 34 | . 32 2 Launcher 66 | . . 66 Special . | . . . Kinetic 70 | . 70 . Thermal 34 | . 32 2 Explosive 66 | . . 66 Electromagnetic . | . . . Robot Hit Streak 13 | . 7 13 Robot Miss Streak 10 | . 10 3 Penetration Max . | . . . Secondary Targets . | . . . Shots Hit Robots 86 | . 61 25 Core Hits 80 | . 22 58 Critical Kills 1 | . 1 . Critical Parts Destroyed . | . . . Critical Strikes 1 | . 1 . Destroy 1 | . 1 . Melee Attacks 8 | . 8 . Impact . | . . . Slashing . | . . . Piercing . | . . . Sneak Attacks 7 | . 7 . Combat Hostiles . | . . . Follow-up Attacks . | . . . Damage Inflicted 3692 | . 830 2862 Guns 522 | . 522 . Cannons 308 | . 308 . Explosions 2822 | . . 2822 Melee . | . . . Ramming 40 | . . 40 Kinetic 522 | . 522 . Thermal 427 | . 308 119 Explosive 2703 | . . 2703 Electromagnetic . | . . . Impact . | . . . Slashing . | . . . Piercing . | . . . Highest Corruption 4 | . 2 4 Average Corruption 1 | . 2 1 Corruption Purged . | . . . Corruption Blocked . | . . . Effects 15 | . 2 13 Message Errors 3 | . . 3 Matter Fused 5 | . 2 3 Heat Flow Errors 1 | . . 1 Energy Discharges 1 | . . 1 Parts Fused 1 | . . 1 Data Loss (minor) 2 | . . 2 Data Loss (major) 1 | . . 1 Misfires 1 | . . 1 Overload Shots . | . . . Overflow Damage 127 | . 30 97 Projectiles 30 | . 30 . Explosions 97 | . . 97 Melee . | . . . Knockbacks . | . . . Impact . | . . . Kinetic . | . . . Secondary . | . . . Self-Inflicted Damage 235 | . . 235 Shots 10 | . . 10 Rammed 7 | . . 7 Targets Rammed 7 | . . 7 Kicked . | . . . Crushed . | . . . Highest Temperature 391 | . 391 126 Average Temperature 104 | . 117 30 Received Heat Transfer 708 | . 318 390 Effects 6 | . 6 . Energy Bleed 1 | . 1 . Interference 4 | . 4 . Short Circuit 1 | . 1 . Siege Activations . | . . . Robots Corrupted . | . . . Combat Hostiles . | . . . Parts Fried . | . . . Impact Corruptions . | . . . Robots Melted . | . . . Combat Hostiles . | . . . Parts Melted . | . . . Heat Transferred 655 | . 555 100 Parts Sabotaged . | . . . Parts Stolen . | . . . Parts Stripped . | . . . Power Chain Reactions . | . . . Alert | -11 -10 -9 ------- Run | Yrd Mat Mat Peak Influence 877 | . 170 877 Initial 27 | . . 27 Average 325 | . 72 599 Maximum Alert Level 3 | . . 3 Low Security (%) 55 | 100 100 8 Level 1 4 | . . 10 Level 2 17 | . . 35 Level 3 22 | . . 45 Level 4 . | . . . Level 5 . | . . . High Security . | . . . Max Security . | . . . Squads Dispatched 4 | . 3 1 Investigation 2 | . 1 1 Extermination . | . . . Reinforcement 2 | . 2 . Assault . | . . . Garrison . | . . . Intercept . | . . . Searches Triggered . | . . . Construction Impeded . | . . . Haulers Reinforced . | . . . Active Scanning Responses . | . . . Cargo Convoy Interrupts . | . . . Stealth | -11 -10 -9 --------- Run | Yrd Mat Mat Distress Signals 4 | . 2 2 Communications Jammed . | . . . Distress Signals . | . . . Times Spotted 56 | . 24 32 Peak Tracking Total 7 | . 5 7 Tactical Retreats 1 | . . 1 Traps | -11 -10 -9 ------- Run | Yrd Mat Mat Traps Triggered 5 | . 1 4 Indirectly . | . . . Trap Hack Attempts . | . . . Triggered . | . . . Disarmed . | . . . Reprogrammed . | . . . Reused . | . . . Traps Extracted . | . . . Installed . | . . . Triggered . | . . . Machines | -11 -10 -9 ---------- Run | Yrd Mat Mat Machines Disabled 10 | . . 10 Max in Single Turn 2 | . . 2 Machines Repaired . | . . . Machines Dismantled . | . . . Machines Sabotaged . | . . . Overloaded Fab Kills . | . . . Hacking | -11 -10 -9 --------- Run | Yrd Mat Mat Machines Accessed 7 | . 4 3 Terminals 4 | . 4 . Fabricators . | . . . Repair Stations 2 | . . 2 Recycling Units . | . . . Scanalyzers 1 | . . 1 Garrison Access . | . . . Total Hacks 25 | . 14 11 Successful 12 | . 4 8 Failed 13 | . 10 3 Catastrophic 2 | . 2 . Database Lockouts . | . . . Manual . | . . . Terminals 14 | . 14 . Fabricators . | . . . Repair Stations 9 | . . 9 Recycling Units . | . . . Scanalyzers 2 | . . 2 Garrison Access . | . . . Terminal Hacks 4 | . 4 . Prototype ID Bank 1 | . 1 . Dispatch Records 1 | . 1 . Investigation Status 1 | . 1 . Hauler Manifests 1 | . 1 . Fabricator Hacks . | . . . Repair Station Hacks 6 | . . 6 Scan Component 3 | . . 3 Repair 3 | . . 3 Recycling Unit Hacks . | . . . Scanalyzer 2 | . . 2 Insert Component 1 | . . 1 Analyze 1 | . . 1 Garrison Access Hacks . | . . . Unauthorized Hacks . | . . . Terminals . | . . . Fabricators . | . . . Repair Stations . | . . . Recycling Units . | . . . Scanalyzers . | . . . Garrison Access . | . . . Data Cores Recovered . | . . . Used . | . . . Hacking Detections 7 | . 4 3 Full Trace Events 2 | . 1 1 Feedback Events . | . . . Feedback Blocked . | . . . Robot Schematics Acquired . | . . . Robots Built . | . . . Authchips . | . . . Time . | . . . Total Robot Build Rating . | . . . Part Schematics Acquired 1 | . . 1 Parts Built . | . . . Authchips . | . . . Time . | . . . Total Part Build Rating . | . . . Parts Repaired 3 | . . 3 Time 83 | . . 83 Parts Recycled . | . . . Recycled Matter . | . . . Retrieved Matter . | . . . Retrieved Components . | . . . Parts Scanalyzed 1 | . . 1 Part Schematics Acquired 1 | . . 1 Parts Damaged . | . . . Bothacking | -11 -10 -9 ------------ Run | Yrd Mat Mat Used RIF Installer . | . . . Robots Hacked 3 | . 3 . Non-combat 3 | . 3 . Combat . | . . . Robot Hacks Applied 5 | . 5 . parse_system 2 | . 2 . no_distress 2 | . 2 . find_recycling 1 | . 1 . Relay Couplers Released . | . . . Fabnet Peak Effective % . | . . . Robots Rewired . | . . . Allies Hacked . | . . . Hacks Repelled . | . . . Allies | -11 -10 -9 -------- Run | Yrd Mat Mat Total Allies . | . . . Largest Group . | . . . Highest-Rated Group . | . . . Highest-Rated Ally . | . . . Total Orders . | . . . Ally Attacks . | . . . Total Damage . | . . . Kills . | . . . Allies Corrupted . | . . . Allies Melted . | . . . Intel | -11 -10 -9 ------- Run | Yrd Mat Mat Robot Analysis Total . | . . . Derelict Logs Recovered . | . . . Drone Launches . | . . . Drone Recoveries . | . . . Exploration | -11 -10 -9 ------------- Run | Yrd Mat Mat Turns Passed 2856 | 109 1358 1389 Spaces Moved 1704 | 65 811 828 Core 198 | 14 . 184 Treads 888 | 51 327 510 Legs 618 | . 484 134 Wheels . | . . . Hover . | . . . Flight . | . . . Fastest Speed 50 | 50 120 50 Average Speed 135 | 136 136 135 Slowest Speed 300 | 160 190 300 Overloaded Moves . | . . . Propulsion Burnouts . | . . . Robots Hopped . | . . . Cave-ins Triggered 3 | . . 3 Exploration Rate (%) 47 | 3 94 44 Regions Visited 2 Branch Regions . Pre-discovered Areas . | . . . Known Exits Taken . | . . . Unknown Exits Taken 2 | 1 1 . Scrap Searched . | . . . Spaces Dug 171 | . . 171 Terrain Destroyed 453 | . . 453 Melee . | . . . Projectile . | . . . AOE 453 | . . 453 Terrain Rammed . | . . . Walls Destroyed . | . . . Machines Disabled . | . . . Actions | -11 -10 -9 --------- Run | Yrd Mat Mat Total 2066 | 83 959 1024 Wait 134 | 7 32 95 Move 1699 | 64 810 825 Hop . | . . . Pick Up 20 | 6 7 7 Fast Attach 23 | 6 8 9 Attach 4 | . . 4 Detach 3 | . 1 2 Swap 11 | . 4 7 Drop 22 | . 12 10 Fire 133 | . 77 56 Melee 8 | . 8 . Ram 7 | . . 7 Kick . | . . . Crush . | . . . Escape Stasis 2 | . . 2 Rewire . | . . . Trap . | . . . Miscellaneous . | . . . Route ------- -11/Scrapyard -10/Materials (discovered 5 exits: *Mat x3 / [*Min x2]) -9/Materials (discovered 1 exit: [*Mat]) History --------- Turn | Location | Event 3 | -11/Scrapyard | Discovered new exit (range 15) 110 | -11/Scrapyard | Entered Materials 316 | -10/Materials | Build established: Mutant 358 | -10/Materials | Discovered new exit (range 8) 602 | -10/Materials | Discovered new exit (range 16) 737 | -10/Materials | Core integrity fell below 50% 976 | -10/Materials | Discovered new exit (range 9) 1098 | -10/Materials | Discovered new exit (range 13) 1383 | -10/Materials | Build established: Scavenger-Mutant 1392 | -10/Materials | Discovered new exit (range 15) 1468 | -10/Materials | Entered another Materials area 1468 | -9/Materials | Evolved 2 slots: Utility x2 1619 | -9/Materials | Destroyed 9 combat bots 1860 | -9/Materials | Repaired Mni. Grenade Launcher 1902 | -9/Materials | Repaired Lgt. Nuclear Core 2091 | -9/Materials | Repaired Sensor Array 2357 | -9/Materials | Discovered new exit (range 17) 2598 | -9/Materials | Build established: Mutant 2770 | -9/Materials | Lost 4 parts (1p1n1u1w) 2829 | -9/Materials | Core integrity fell below 50% 2838 | -9/Materials | Crushed by falling debris 2853 | -9/Materials | Crushed by falling debris 2857 | -9/Materials | Crushed by falling debris 2857 | -9/Materials | Smashed by cave-in Last Messages --------------- 02823_ U-05 Engineer builds a Wall. 02824_ The unstable cave ceiling collapses. 02827_ U-05 Engineer builds a Wall. 02830_ The unstable cave ceiling collapses. 02836_ System corrupted: Component data lost. 02836_ The unstable cave ceiling collapses. 02838_ Crushed by falling debris. 02838_ Structural Scanner destroyed. 02838_ System corrupted by crushing effect (+1). 02838_ Sensor Array destroyed. 02838_ System corrupted by crushing effect (+1). 02838_ Visual Processing Unit destroyed. 02838_ System corrupted by crushing effect (+1). 02842_ The unstable cave ceiling collapses. 02849_ Mni. Grenade Launcher destroyed. 02849_ Destroyed Mni. Grenade Launcher. 02850_ The unstable cave ceiling collapses. 02853_ Crushed by falling debris. 02856_ The unstable cave ceiling collapses. 02857_ Crushed by falling debris. Map ----- +----------------------------------------------------+ | ######## ###+########### ## | | # ## ## ## # [ ## | | # """ ## ## ! ###### # ## | | # """ ## ## ] !! ########### ## | | # """ ## ^## ! # # ## | | # """ ## ## # ## """ # ## | | # """ # # """ # " """ # | | # + # """ # ## """ + | | # # T # """ ##### "" """ # | | # # ############### """ """ # | | #"" ## #############?## # | | #" ## ###???????????## = + | | #" ## #########?????#############+### | | # ## #########?????########### | | ###+# ### # ##??????????????## | | # # # ##??????????????## | | # ## # # """ ##??????????????## """ | | ## # + / """ !##?#####????????## """ | | ## # # # """ #### # ##???????## """ | | ###### # # ### #???????######## | | ## ############ ##???????######## | | ####### # ####### ##????????# | | ?##### ###?### #????????# !!! | | ????## # ###### # #????????# !!! | | ????### #### ##????????# !!! | | ????### # @ #?????????# | | ????## # # # ####?????????# | | ????## # # # ##???????????# | | ????### #### ###????????????# | | ????### ##??????????????###### | | ?????## # # ###???????????????????? | | ?????## # ##########????????????????????? | | ?????##############??????????????????????? | | ?????########????????????????????????????? | | | | | | | | | | | | | | | | | | | | | | | | | | | | | | | | | +----------------------------------------------------+ Best States ------------- Heat Dissipation 42 Energy Generation 14 Energy Capacity 250 Matter Stores 300 Matter Capacity 300 Sight Range 18 Robot Scan Range 14 Terrain Scan Density 10 Evasion (%) 55 Recoil Reduction 2 Item Schematics ----------------- Imp. Treads | -9/Materials | Scanalyzed Robot Schematics ------------------ None Fabricated ------------ Nothing Alien Tech Used ----------------- None Achievements -------------- Maybe Next Time I'll Detach My Launcher Challenges ------------ None Game ------ Seed AdvancedWaveNetwork Manual? 0 Play Time 00:39:11 Cumulative 14.2 hours Start 2024.03.19 @ 02:19:05 End 2024.03.20 @ 00:14:12 Sessions 2 Manual Loads 0 Difficulty Rogue Special Mode None Game No. 22 Rogue 22 Adventurer 0 Explorer 0 Win Type - Total 0 Types 0/0/0/0/0/0/0/0/0 Lore% 22 Gallery% 20 Achievement% 21 Wizard Run 0 Options --------- Layout 1 ASCII 0 Keyboard 1 Movement Numpad Keybinds 0 Fullscreen 1 Font 16/SmallcapsGlow Map View 55x38 Zoom Use 10% Tactical HUD 1 Map Filters NONE Filters NONE Steam 1 RUN: 6bee0bdd-f364-4b90-825b-9141b19f5e27